[Event "Slovakia Open Piestany-A 2022"]
[Site "Piestany"]
[Date "2022.07.13"]
[Round "4.10"]
[White "Samunenkov, Ihor"]
[Black "Hrbek, Stepan"]
[Result "1-0"]
[ECO "B54"]
[WhiteElo "2448"]
[BlackElo "2272"]
[Annotator "ChessBase"]
[PlyCount "49"]
[EventDate "2022.07.12"]
[EventType "swiss"]
[EventCountry "SVK"]
[SourceTitle "playchess.com"]
[Source "ChessBase"]
[SourceQuality "1"]
[TimeControl "40/5400+30:1800+30"]

1. e4 {[%emt 0:02:59]} c5 {[%emt 0:00:40]} 2. Nc3 {[%emt 0:00:10]} Nc6 {[%emt 0:00:15]} 3. Nf3 {[%emt 0:00:13]} d6 {[%emt 0:00:37]} 4. Bb5 {[%emt 0:01:55]} Bd7 {[%emt 0:00:16]} 5. Bxc6 {[%emt 0:01:33]} Bxc6 {[%emt 0:00:20]} 6. d4 {[%emt 0:00:42]} cxd4 {[%emt 0:00:47]} 7. Nxd4 {[%emt 0:02:15]} Nf6 {[%emt 0:01:59]} 8. Qe2 {[%emt 0:05:41]} e6 {[%emt 0:05:33]} 9. f3 {[%emt 0:06:58]} d5 {[%emt 0:10:44]} 10. e5 {[%emt 0:04:49]} Nd7 {[%emt 0:00:16]} 11. f4 {[%emt 0:02:27]} a6 {[%emt 0:03:20]} 12. Be3 {[%emt 0:04:04]} Qc7 {[%emt 0:00:38]} 13. O-O {[%emt 0:03:58]} b5 {[%emt 0:08:30]} 14. f5 {[%emt 0:07:10]} exf5 {[%emt 0:28:50]} 15. e6 {[%emt 0:11:30]} Nf6 {[%emt 0:03:16]} 16. Bf4 {[%emt 0:06:59]} Qc8 {[%emt 0:00:10]} 17. e7 {[%emt 0:01:59]} Bxe7 {[%emt 0:00:29]} 18. Bd6 {[%emt 0:00:36]} Ne4 {[%emt 0:01:55]} 19. Bxe7 {[%emt 0:01:46]} Kxe7 {[%emt 0:00:07]} 20. Nxf5+ {[%emt 0:00:16]} Kd7 {[%emt 0:04:18]} 21. Nxe4 {[%emt 0:01:08]} dxe4 {[%emt 0:00:14]} 22. Rad1+ {[%emt 0:00:11]} Kc7 {[%emt 0:00:12]} 23. Nd6 {[%emt 0:00:21]} Qe6 {[%emt 0:01:25]} 24. Rxf7+ {[%emt 0:00:11]} Bd7 {[%emt 0:00:53]} 25. Qxe4 {[%emt 0:00:47]} 1-0

[Event "Slovakia Open Piestany-A 2022"]
[Site "Piestany"]
[Date "2022.07.13"]
[Round "4.11"]
[White "Turcan, Richard"]
[Black "Kostolansky, Sebastian Lukas"]
[Result "1/2-1/2"]
[ECO "B47"]
[WhiteElo "2304"]
[BlackElo "2406"]
[Annotator "ChessBase"]
[PlyCount "134"]
[EventDate "2022.07.12"]
[EventType "swiss"]
[EventCountry "SVK"]
[SourceTitle "playchess.com"]
[Source "ChessBase"]
[SourceQuality "1"]
[TimeControl "40/5400+30:1800+30"]

1. e4 {[%emt 0:09:16]} c5 {[%emt 0:00:12]} 2. Nf3 {[%emt 0:00:25]} e6 {[%emt 0:00:06]} 3. d4 {[%emt 0:00:05]} cxd4 {[%emt 0:00:04]} 4. Nxd4 {[%emt 0:00:04]} Nc6 {[%emt 0:01:33]} 5. Nc3 {[%emt 0:00:06]} Qc7 {[%emt 0:01:12]} 6. Qd3 {[%emt 0:01:28]} Nxd4 {[%emt 0:00:57]} 7. Qxd4 {[%emt 0:00:07]} a6 {[%emt 0:00:20]} 8. Be3 {[%emt 0:00:09]} b5 {[%emt 0:00:02]} 9. a4 {[%emt 0:00:13]} b4 {[%emt 0:00:03]} 10. Na2 {[%emt 0:00:08]} Rb8 {[%emt 0:00:49]} 11. Qa7 {[%emt 0:00:19]} Qxa7 {[%emt 0:00:04]} 12. Bxa7 {[%emt 0:00:05]} Ra8 {[%emt 0:00:39]} 13. Bd4 {[%emt 0:00:07]} Bb7 {[%emt 0:09:58]} 14. f3 {[%emt 0:01:20]} Nf6 {[%emt 0:03:47]} 15. c3 {[%emt 0:08:04]} bxc3 {[%emt 0:01:14]} 16. Nxc3 {[%emt 0:00:12]} h5 {[%emt 0:09:26]} 17. Be2 {[%emt 0:08:12]} h4 {[%emt 0:11:17]} 18. Kf2 {[%emt 0:14:01]} Rh6 {[%emt 0:16:19]} 19. Rhb1 {[%emt 0:09:59]} Bb4 {[%emt 0:13:37]} 20. Na2 {[%emt 0:01:24]} Bd2 {[%emt 0:00:41]} 21. b4 {[%emt 0:21:02]} d5 {[%emt 0:10:31]} 22. exd5 {[%emt 0:00:06]} Nxd5 {[%emt 0:00:45]} 23. b5 {[%emt 0:06:06]} Rg6 {[%emt 0:09:24]} 24. g3 {[%emt 0:02:40]} hxg3+ {[%emt 0:00:00]} 25. hxg3 {[%emt 0:01:32]} f6 {[%emt 0:00:29]} 26. Rh1 {[%emt 0:00:30]} Rh6 {[%emt 0:00:30]} 27. Rxh6 {[%emt 0:00:30]} Bxh6 {[%emt 0:00:30]} 28. f4 {[%emt 0:00:31]} e5 {[%emt 0:05:33]} 29. fxe5 {[%emt 0:02:53]} fxe5 {[%emt 0:00:04]} 30. Bxe5 {[%emt 0:00:39]} Ke7 {[%emt 0:00:03]} 31. bxa6 {[%emt 0:04:28]} Bxa6 {[%emt 0:00:54]} 32. Bf3 {[%emt 0:01:22]} Rf8 {[%emt 0:03:15]} 33. Re1 {[%emt 0:01:43]} Bd2 {[%emt 0:01:06]} 34. Rd1 {[%emt 0:00:47]} Be3+ {[%emt 0:01:06]} 35. Kg2 {[%emt 0:00:05]} Be2 {[%emt 0:00:15]} 36. Bxe2 {[%emt 0:00:56]} Rf2+ {[%emt 0:00:04]} 37. Kh3 {[%emt 0:00:16]} Rxe2 {[%emt 0:00:04]} 38. Nc3 {[%emt 0:01:52]} Nxc3 {[%emt 0:00:03]} 39. Bxc3 {[%emt 0:00:03]} Bf2 {[%emt 0:02:03]} 40. Bd4 {[%emt 0:03:28]} Bxd4 {[%emt 0:00:58]} 41. Rxd4 {[%emt 0:30:07]} Ra2 {[%emt 0:07:05]} 42. Rf4 {[%emt 0:00:00]} Ra3 {[%emt 0:01:57]} 43. Kg4 {[%emt 0:00:00]} Kd6 {[%emt 0:06:06]} 44. Rb4 {[%emt 0:00:00]} Kc5 {[%emt 0:02:30]} 45. Rf4 {[%emt 0:00:00]} Kd6 {[%emt 0:00:34]} 46. Kh3 {[%emt 0:00:00]} Ke6 {[%emt 0:07:38]} 47. Rg4 {[%emt 0:00:00]} g5 {[%emt 0:01:55]} 48. Rb4 {[%emt 0:00:00]} Kf5 {[%emt 0:00:06]} 49. Rb5+ {[%emt 0:00:00]} Kg6 {[%emt 0:00:03]} 50. Rb4 {[%emt 0:00:00]} Kf5 {[%emt 0:00:50]} 51. Rc4 {[%emt 0:00:00]} Ra1 {[%emt 0:01:47]} 52. Rc5+ {[%emt 0:00:00]} Kg6 {[%emt 0:00:50]} 53. Rc6+ {[%emt 0:00:00]} Kf5 {[%emt 0:00:23]} 54. Rc5+ {[%emt 0:00:00]} Kg6 {[%emt 0:00:03]} 55. Ra5 {[%emt 0:00:00]} Kh5 {[%emt 0:00:03]} 56. g4+ {[%emt 0:00:00]} Kg6 {[%emt 0:00:05]} 57. Ra6+ {[%emt 0:00:00]} Kf7 {[%emt 0:00:10]} 58. Kg3 {[%emt 0:00:00]} Ra3+ {[%emt 0:02:12]} 59. Kf2 {[%emt 0:00:00]} Kg7 {[%emt 0:00:30]} 60. a5 {[%emt 0:00:00]} Ra4 {[%emt 0:01:20]} 61. Kf3 {[%emt 0:00:00]} Rf4+ {[%emt 0:00:06]} 62. Kg3 {[%emt 0:00:00]} Ra4 {[%emt 0:00:03]} 63. Ra8 {[%emt 0:00:00]} Kh7 {[%emt 0:01:21]} 64. a6 {[%emt 0:00:00]} Kg7 {[%emt 0:00:36]} 65. a7 {[%emt 0:00:00]} Ra3+ {[%emt 0:00:16]} 66. Kf2 {[%emt 0:00:00]} Ra2+ {[%emt 0:00:17]} 67. Ke3 {[%emt 0:00:00]} Ra3+ {[%emt 0:00:14]} 1/2-1/2

[Event "Slovakia Open Piestany-A 2022"]
[Site "Piestany"]
[Date "2022.07.13"]
[Round "4.12"]
[White "Moksh Amit Doshi"]
[Black "Palchuk, Andrii"]
[Result "1/2-1/2"]
[ECO "D46"]
[WhiteElo "2409"]
[BlackElo "2248"]
[Annotator "ChessBase"]
[PlyCount "81"]
[EventDate "2022.07.12"]
[EventType "swiss"]
[EventCountry "SVK"]
[SourceTitle "playchess.com"]
[Source "ChessBase"]
[SourceQuality "1"]
[TimeControl "40/5400+30:1800+30"]

1. d4 {[%emt 0:03:43]} Nf6 {[%emt 0:02:29]} 2. c4 {[%emt 0:00:14]} e6 {[%emt 0:00:22]} 3. Nf3 {[%emt 0:01:11]} d5 {[%emt 0:00:08]} 4. Nc3 {[%emt 0:00:11]} c6 {[%emt 0:00:19]} 5. e3 {[%emt 0:01:32]} Nbd7 {[%emt 0:01:20]} 6. Qc2 {[%emt 0:00:08]} Bd6 {[%emt 0:01:24]} 7. Be2 {[%emt 0:01:04]} dxc4 {[%emt 0:05:05]} 8. Bxc4 {[%emt 0:00:24]} b5 {[%emt 0:00:10]} 9. Be2 {[%emt 0:00:14]} Bb7 {[%emt 0:01:33]} 10. O-O {[%emt 0:00:11]} O-O {[%emt 0:04:42]} 11. e4 {[%emt 0:00:44]} e5 {[%emt 0:02:20]} 12. dxe5 {[%emt 0:00:10]} Nxe5 {[%emt 0:00:10]} 13. Nd4 {[%emt 0:00:07]} Neg4 {[%emt 0:18:27]} 14. g3 {[%emt 0:00:14]} Bxg3 {[%emt 0:02:18]} 15. hxg3 {[%emt 0:00:10]} Qxd4 {[%emt 0:00:04]} 16. Qd1 {[%emt 0:00:13]} Qxd1 {[%emt 0:03:23]} 17. Rxd1 {[%emt 0:00:09]} Rad8 {[%emt 0:09:44]} 18. Bf4 {[%emt 0:01:57]} Rxd1+ {[%emt 0:02:36]} 19. Rxd1 {[%emt 0:00:10]} Re8 {[%emt 0:00:06]} 20. b4 {[%emt 0:17:38]} a6 {[%emt 0:13:49]} 21. Rd4 {[%emt 0:10:57]} Ne5 {[%emt 0:06:29]} 22. Rd6 {[%emt 0:05:12]} Ned7 {[%emt 0:03:56]} 23. Be3 {[%emt 0:02:11]} Nf8 {[%emt 0:04:35]} 24. Bd1 {[%emt 0:08:00]} Re7 {[%emt 0:03:22]} 25. Rd8 {[%emt 0:01:02]} Re8 {[%emt 0:00:08]} 26. Rd3 {[%emt 0:01:28]} Bc8 {[%emt 0:03:02]} 27. f3 {[%emt 0:02:18]} Be6 {[%emt 0:00:19]} 28. Rd6 {[%emt 0:01:17]} Rc8 {[%emt 0:00:53]} 29. f4 {[%emt 0:00:19]} Ne8 {[%emt 0:02:22]} 30. Rd2 {[%emt 0:00:21]} f6 {[%emt 0:00:41]} 31. Ne2 {[%emt 0:02:48]} Bc4 {[%emt 0:02:14]} 32. Nd4 {[%emt 0:01:27]} Nd6 {[%emt 0:00:35]} 33. Bf3 {[%emt 0:00:59]} Re8 {[%emt 0:01:07]} 34. e5 {[%emt 0:01:51]} fxe5 {[%emt 0:00:21]} 35. fxe5 {[%emt 0:01:04]} Rxe5 {[%emt 0:03:06]} 36. Bf4 {[%emt 0:00:07]} Ne4 {[%emt 0:00:30]} 37. Rc2 {[%emt 0:01:30]} Re8 {[%emt 0:00:23]} 38. Nxc6 {[%emt 0:00:40]} Ng6 {[%emt 0:00:48]} 39. Bc7 {[%emt 0:02:20]} Bd5 {[%emt 0:01:04]} 40. Nb8 {[%emt 0:00:43]} Nf6 {[%emt 0:00:56]} 41. Be2 {[%emt 0:32:57]} 1/2-1/2

[Event "Slovakia Open Piestany-A 2022"]
[Site "Piestany"]
[Date "2022.07.13"]
[Round "4.13"]
[White "Pacher, Milan"]
[Black "Leszko, Bence"]
[Result "1-0"]
[ECO "B45"]
[WhiteElo "2399"]
[BlackElo "2241"]
[Annotator "ChessBase"]
[PlyCount "77"]
[EventDate "2022.07.12"]
[EventType "swiss"]
[EventCountry "SVK"]
[SourceTitle "playchess.com"]
[Source "ChessBase"]
[SourceQuality "1"]
[TimeControl "40/5400+30:1800+30"]

1. e4 {[%emt 0:04:57]} c5 {[%emt 0:16:29]} 2. Nf3 {[%emt 0:00:03]} e6 {[%emt 0:00:05]} 3. d4 {[%emt 0:00:04]} cxd4 {[%emt 0:00:04]} 4. Nxd4 {[%emt 0:00:04]} Nf6 {[%emt 0:00:03]} 5. Nc3 {[%emt 0:00:07]} Nc6 {[%emt 0:00:07]} 6. Ndb5 {[%emt 0:00:08]} Bc5 {[%emt 0:00:05]} 7. Bf4 {[%emt 0:00:19]} O-O {[%emt 0:00:05]} 8. Bc7 {[%emt 0:00:05]} Qe7 {[%emt 0:00:02]} 9. Bd6 {[%emt 0:00:06]} Bxd6 {[%emt 0:00:03]} 10. Qxd6 {[%emt 0:00:07]} Qd8 {[%emt 0:00:02]} 11. O-O-O {[%emt 0:01:27]} a6 {[%emt 0:00:01]} 12. Nd4 {[%emt 0:00:27]} Ne7 {[%emt 0:00:15]} 13. f3 {[%emt 0:02:43]} b5 {[%emt 0:00:05]} 14. Nb3 {[%emt 0:01:06]} Ne8 {[%emt 0:01:03]} 15. Qd2 {[%emt 0:01:01]} b4 {[%emt 0:00:48]} 16. Na4 {[%emt 0:03:26]} a5 {[%emt 0:01:19]} 17. Kb1 {[%emt 0:02:59]} d6 {[%emt 0:03:52]} 18. Qf2 {[%emt 0:03:26]} Rb8 {[%emt 0:05:59]} 19. e5 {[%emt 0:07:55]} Bd7 {[%emt 0:03:34]} 20. exd6 {[%emt 0:07:24]} Bxa4 {[%emt 0:01:06]} 21. dxe7 {[%emt 0:00:07]} Qxd1+ {[%emt 0:02:14]} 22. Nc1 {[%emt 0:00:02]} Rc8 {[%emt 0:12:14]} 23. b3 {[%emt 0:04:03]} Bb5 {[%emt 0:01:58]} 24. Bd3 {[%emt 0:00:18]} Qxh1 {[%emt 0:04:23]} 25. Bxh7+ {[%emt 0:00:06]} Kxh7 {[%emt 0:00:06]} 26. exf8=Q {[%emt 0:00:07]} Qxh2 {[%emt 0:09:27]} 27. Qxf7 {[%emt 0:01:36]} Qh6 {[%emt 0:06:04]} 28. g4 {[%emt 0:02:09]} Rc7 {[%emt 0:04:04]} 29. Qf8 {[%emt 0:00:52]} Rc3 {[%emt 0:16:03]} 30. f4 {[%emt 0:01:29]} Qh1 {[%emt 0:02:22]} 31. Kb2 {[%emt 0:10:57]} Rf3 {[%emt 0:02:13]} 32. Q2c5 {[%emt 0:00:48]} Bd7 {[%emt 0:07:40]} 33. Qf7 {[%emt 0:01:21]} Rc3 {[%emt 0:00:43]} 34. Qe5 {[%emt 0:00:54]} Rc7 {[%emt 0:01:15]} 35. g5 {[%emt 0:01:18]} Qg2 {[%emt 0:00:28]} 36. Ne2 {[%emt 0:00:21]} a4 {[%emt 0:00:42]} 37. bxa4 {[%emt 0:00:27]} Qg4 {[%emt 0:00:42]} 38. Qe4+ {[%emt 0:00:42]} Qf5 {[%emt 0:00:12]} 39. Qh1+ {[%emt 0:00:05]} 1-0

[Event "Slovakia Open Piestany-A 2022"]
[Site "Piestany"]
[Date "2022.07.13"]
[Round "4.14"]
[White "Czerw, Dawid"]
[Black "Mullick, Raahil"]
[Result "1-0"]
[ECO "B51"]
[WhiteElo "2391"]
[BlackElo "2237"]
[Annotator "ChessBase"]
[PlyCount "79"]
[EventDate "2022.07.12"]
[EventType "swiss"]
[EventCountry "SVK"]
[SourceTitle "playchess.com"]
[Source "ChessBase"]
[SourceQuality "1"]
[TimeControl "40/5400+30:1800+30"]

1. e4 {[%emt 0:00:03]} c5 {[%emt 0:00:13]} 2. Nf3 {[%emt 0:00:06]} d6 {[%emt 0:00:05]} 3. Bb5+ {[%emt 0:00:03]} Nd7 {[%emt 0:00:10]} 4. O-O {[%emt 0:00:19]} a6 {[%emt 0:00:18]} 5. Bd3 {[%emt 0:00:06]} Ngf6 {[%emt 0:00:09]} 6. Re1 {[%emt 0:00:17]} g6 {[%emt 0:00:08]} 7. c3 {[%emt 0:00:17]} Bg7 {[%emt 0:00:19]} 8. Bc2 {[%emt 0:00:34]} O-O {[%emt 0:02:15]} 9. d4 {[%emt 0:04:01]} e5 {[%emt 0:00:07]} 10. a4 {[%emt 0:01:57]} b6 {[%emt 0:04:56]} 11. dxe5 {[%emt 0:00:33]} dxe5 {[%emt 0:11:59]} 12. c4 {[%emt 0:02:21]} Bb7 {[%emt 0:04:52]} 13. Nc3 {[%emt 0:00:57]} Qc7 {[%emt 0:01:49]} 14. a5 {[%emt 0:03:07]} bxa5 {[%emt 0:08:57]} 15. Nd5 {[%emt 0:00:28]} Nxd5 {[%emt 0:00:19]} 16. cxd5 {[%emt 0:00:36]} h6 {[%emt 0:04:01]} 17. Bd2 {[%emt 0:08:23]} Qd6 {[%emt 0:04:07]} 18. Bxa5 {[%emt 0:02:04]} f5 {[%emt 0:01:37]} 19. Nd2 {[%emt 0:01:09]} Qf6 {[%emt 0:02:36]} 20. f3 {[%emt 0:03:17]} Nb6 {[%emt 0:01:36]} 21. Bd3 {[%emt 0:04:17]} Nc8 {[%emt 0:07:04]} 22. Qc2 {[%emt 0:04:03]} Nd6 {[%emt 0:02:51]} 23. Qxc5 {[%emt 0:01:27]} Rfc8 {[%emt 0:01:52]} 24. Qe3 {[%emt 0:02:29]} f4 {[%emt 0:00:47]} 25. Qe2 {[%emt 0:01:13]} Bf8 {[%emt 0:01:11]} 26. Rec1 {[%emt 0:00:43]} Qf7 {[%emt 0:03:09]} 27. b4 {[%emt 0:03:42]} Qe8 {[%emt 0:03:36]} 28. Nb3 {[%emt 0:04:06]} Nb5 {[%emt 0:02:04]} 29. Bxb5 {[%emt 0:01:07]} axb5 {[%emt 0:04:20]} 30. Nc5 {[%emt 0:02:39]} Rcb8 {[%emt 0:01:20]} 31. Bc7 {[%emt 0:11:11]} Rc8 {[%emt 0:01:15]} 32. Rxa8 {[%emt 0:02:33]} Bxa8 {[%emt 0:00:06]} 33. d6 {[%emt 0:01:48]} Bc6 {[%emt 0:01:04]} 34. Qa2+ {[%emt 0:02:58]} Qf7 {[%emt 0:01:25]} 35. Qxf7+ {[%emt 0:00:34]} Kxf7 {[%emt 0:00:07]} 36. Nd3 {[%emt 0:00:10]} Be8 {[%emt 0:04:15]} 37. Ra1 {[%emt 0:06:08]} Bg7 {[%emt 0:08:10]} 38. Ra7 {[%emt 0:01:27]} Bd7 {[%emt 0:00:35]} 39. Nc5 {[%emt 0:02:26]} Ke8 {[%emt 0:00:18]} 40. Ba5 {[%emt 0:03:09]} 1-0

[Event "Slovakia Open Piestany-A 2022"]
[Site "Piestany"]
[Date "2022.07.13"]
[Round "4.15"]
[White "Favaloro, Andrea"]
[Black "Gyerpal, Adrian"]
[Result "1-0"]
[ECO "E62"]
[WhiteElo "2361"]
[BlackElo "2193"]
[Annotator "ChessBase"]
[PlyCount "77"]
[EventDate "2022.07.12"]
[EventType "swiss"]
[EventCountry "SVK"]
[SourceTitle "playchess.com"]
[Source "ChessBase"]
[SourceQuality "1"]
[TimeControl "40/5400+30:1800+30"]

1. Nf3 {[%emt 0:01:13]} Nf6 {[%emt 0:07:39]} 2. g3 {[%emt 0:00:13]} g6 {[%emt 0:03:22]} 3. Bg2 {[%emt 0:00:22]} Bg7 {[%emt 0:00:08]} 4. d4 {[%emt 0:00:09]} O-O {[%emt 0:02:20]} 5. c4 {[%emt 0:00:22]} d6 {[%emt 0:00:25]} 6. Nc3 {[%emt 0:00:13]} Nc6 {[%emt 0:00:56]} 7. O-O {[%emt 0:00:28]} e5 {[%emt 0:03:31]} 8. dxe5 {[%emt 0:01:03]} dxe5 {[%emt 0:02:10]} 9. Bg5 {[%emt 0:00:31]} Be6 {[%emt 0:00:13]} 10. Qc1 {[%emt 0:00:20]} Qc8 {[%emt 0:08:49]} 11. Rd1 {[%emt 0:00:37]} Re8 {[%emt 0:02:54]} 12. b3 {[%emt 0:03:03]} Nd7 {[%emt 0:04:13]} 13. Bh6 {[%emt 0:02:31]} Bh8 {[%emt 0:02:15]} 14. Ng5 {[%emt 0:01:36]} Nd4 {[%emt 0:05:28]} 15. Nxe6 {[%emt 0:04:25]} fxe6 {[%emt 0:05:39]} 16. Qd2 {[%emt 0:12:01]} Nf6 {[%emt 0:04:09]} 17. Bg5 {[%emt 0:04:14]} Bg7 {[%emt 0:04:53]} 18. e3 {[%emt 0:01:12]} Nf5 {[%emt 0:01:10]} 19. Bxf6 {[%emt 0:01:02]} Bxf6 {[%emt 0:00:03]} 20. Ne4 {[%emt 0:01:21]} Bg7 {[%emt 0:02:16]} 21. Qe2 {[%emt 0:09:38]} Re7 {[%emt 0:03:09]} 22. Rd3 {[%emt 0:02:36]} Qf8 {[%emt 0:06:33]} 23. Rad1 {[%emt 0:00:16]} c6 {[%emt 0:01:06]} 24. R1d2 {[%emt 0:03:16]} h6 {[%emt 0:02:12]} 25. Qd1 {[%emt 0:00:24]} Kh7 {[%emt 0:02:18]} 26. h4 {[%emt 0:05:06]} Rae8 {[%emt 0:02:50]} 27. Kh2 {[%emt 0:02:47]} Bf6 {[%emt 0:01:45]} 28. h5 {[%emt 0:02:32]} g5 {[%emt 0:01:46]} 29. Nd6 {[%emt 0:01:48]} Nxd6 {[%emt 0:02:19]} 30. Rxd6 {[%emt 0:00:13]} Kg7 {[%emt 0:04:28]} 31. Be4 {[%emt 0:01:55]} Rc7 {[%emt 0:02:53]} 32. Bg6 {[%emt 0:00:47]} Be7 {[%emt 0:00:06]} 33. Rxe6 {[%emt 0:01:47]} Rd8 {[%emt 0:00:05]} 34. Kg2 {[%emt 0:02:17]} Rxd2 {[%emt 0:02:12]} 35. Qxd2 {[%emt 0:00:05]} Qd8 {[%emt 0:01:03]} 36. Qc2 {[%emt 0:00:23]} Rd7 {[%emt 0:01:52]} 37. Qf5 {[%emt 0:00:34]} Bd6 {[%emt 0:01:04]} 38. Re8 {[%emt 0:00:30]} Qc7 {[%emt 0:00:36]} 39. Bh7 {[%emt 0:00:17]} 1-0

[Event "Slovakia Open Piestany-A 2022"]
[Site "Piestany"]
[Date "2022.07.13"]
[Round "4.16"]
[White "Travnicek, Krystof Mikulas"]
[Black "Marek, Matyas"]
[Result "0-1"]
[ECO "B51"]
[WhiteElo "2138"]
[BlackElo "2354"]
[Annotator "ChessBase"]
[PlyCount "80"]
[EventDate "2022.07.12"]
[EventType "swiss"]
[EventCountry "SVK"]
[SourceTitle "playchess.com"]
[Source "ChessBase"]
[SourceQuality "1"]
[TimeControl "40/5400+30:1800+30"]

1. e4 {[%emt 0:00:09]} c5 {[%emt 0:00:06]} 2. Nf3 {[%emt 0:00:37]} d6 {[%emt 0:00:06]} 3. Bb5+ {[%emt 0:00:39]} Nd7 {[%emt 0:00:06]} 4. c3 {[%emt 0:00:39]} Ngf6 {[%emt 0:00:33]} 5. Qe2 {[%emt 0:00:25]} a6 {[%emt 0:01:25]} 6. Ba4 {[%emt 0:00:18]} b5 {[%emt 0:01:53]} 7. Bc2 {[%emt 0:00:16]} Bb7 {[%emt 0:00:21]} 8. d4 {[%emt 0:00:36]} cxd4 {[%emt 0:06:15]} 9. cxd4 {[%emt 0:04:47]} Rc8 {[%emt 0:01:09]} 10. O-O {[%emt 0:02:09]} Rxc2 {[%emt 0:09:48]} 11. Qxc2 {[%emt 0:00:11]} Bxe4 {[%emt 0:00:15]} 12. Qe2 {[%emt 0:06:28]} Qa8 {[%emt 0:01:36]} 13. Bf4 {[%emt 0:08:49]} e6 {[%emt 0:02:52]} 14. a4 {[%emt 0:05:07]} b4 {[%emt 0:02:07]} 15. Nbd2 {[%emt 0:02:49]} Bd5 {[%emt 0:01:43]} 16. Nc4 {[%emt 0:03:33]} Ne4 {[%emt 0:01:50]} 17. Ne3 {[%emt 0:07:14]} Bb7 {[%emt 0:06:26]} 18. Nd2 {[%emt 0:11:18]} Nxd2 {[%emt 0:06:45]} 19. Qxd2 {[%emt 0:00:04]} a5 {[%emt 0:00:15]} 20. Rfe1 {[%emt 0:05:56]} Nb6 {[%emt 0:03:54]} 21. f3 {[%emt 0:03:35]} Kd7 {[%emt 0:04:58]} 22. Rac1 {[%emt 0:03:28]} Nd5 {[%emt 0:05:53]} 23. Nc4 {[%emt 0:06:27]} Qa7 {[%emt 0:03:04]} 24. Bg3 {[%emt 0:04:44]} Be7 {[%emt 0:00:41]} 25. b3 {[%emt 0:07:26]} h5 {[%emt 0:05:02]} 26. Bf2 {[%emt 0:04:43]} g5 {[%emt 0:04:01]} 27. Be3 {[%emt 0:02:58]} Rg8 {[%emt 0:02:12]} 28. Qd3 {[%emt 0:02:47]} f5 {[%emt 0:02:47]} 29. Qe2 {[%emt 0:02:30]} Rg6 {[%emt 0:00:42]} 30. Nd2 {[%emt 0:01:45]} Ba6 {[%emt 0:01:33]} 31. Nc4 {[%emt 0:00:22]} g4 {[%emt 0:00:38]} 32. f4 {[%emt 0:00:23]} h4 {[%emt 0:00:51]} 33. Qd2 {[%emt 0:01:08]} Bd8 {[%emt 0:00:45]} 34. Red1 {[%emt 0:00:34]} h3 {[%emt 0:00:29]} 35. g3 {[%emt 0:00:36]} Qb7 {[%emt 0:00:19]} 36. Re1 {[%emt 0:01:17]} Rg8 {[%emt 0:09:43]} 37. Qf2 {[%emt 0:00:53]} Nc3 {[%emt 0:01:51]} 38. Nd2 {[%emt 0:01:08]} Qd5 {[%emt 0:00:58]} 39. Nb1 {[%emt 0:00:40]} Bb7 {[%emt 0:00:17]} 40. Kf1 {[%emt 0:00:19]} Qh1+ {[%emt 0:00:26]} 0-1

[Event "Slovakia Open Piestany-A 2022"]
[Site "Piestany"]
[Date "2022.07.13"]
[Round "4.17"]
[White "Farkas, Gabor"]
[Black "Tripodi, Enzo"]
[Result "1-0"]
[ECO "E09"]
[WhiteElo "2335"]
[BlackElo "2141"]
[Annotator "ChessBase"]
[PlyCount "111"]
[EventDate "2022.07.12"]
[EventType "swiss"]
[EventCountry "SVK"]
[SourceTitle "playchess.com"]
[Source "ChessBase"]
[SourceQuality "1"]
[TimeControl "40/5400+30:1800+30"]

1. d4 {[%emt 0:00:03]} Nf6 {[%emt 0:01:26]} 2. c4 {[%emt 0:00:15]} e6 {[%emt 0:00:06]} 3. g3 {[%emt 0:00:13]} d5 {[%emt 0:00:12]} 4. Nf3 {[%emt 0:00:10]} Be7 {[%emt 0:00:10]} 5. Bg2 {[%emt 0:00:07]} O-O {[%emt 0:00:04]} 6. O-O {[%emt 0:00:06]} c6 {[%emt 0:00:14]} 7. Qc2 {[%emt 0:00:07]} Nbd7 {[%emt 0:00:05]} 8. Nbd2 {[%emt 0:00:08]} b6 {[%emt 0:00:54]} 9. e4 {[%emt 0:00:23]} dxe4 {[%emt 0:00:07]} 10. Nxe4 {[%emt 0:00:16]} Bb7 {[%emt 0:00:48]} 11. Rd1 {[%emt 0:01:19]} Nxe4 {[%emt 0:00:44]} 12. Qxe4 {[%emt 0:00:03]} Nf6 {[%emt 0:00:06]} 13. Qc2 {[%emt 0:00:16]} Qc7 {[%emt 0:02:29]} 14. Bf4 {[%emt 0:02:25]} Bd6 {[%emt 0:00:03]} 15. Bxd6 {[%emt 0:07:33]} Qxd6 {[%emt 0:00:04]} 16. c5 {[%emt 0:00:30]} Qc7 {[%emt 0:03:33]} 17. Rac1 {[%emt 0:04:51]} b5 {[%emt 0:17:04]} 18. Ne5 {[%emt 0:05:39]} Rad8 {[%emt 0:01:59]} 19. Qe2 {[%emt 0:03:45]} Nd5 {[%emt 0:01:49]} 20. Be4 {[%emt 0:04:52]} Bc8 {[%emt 0:01:31]} 21. f4 {[%emt 0:04:49]} Bd7 {[%emt 0:04:35]} 22. Bb1 {[%emt 0:08:20]} Be8 {[%emt 0:05:05]} 23. Nf3 {[%emt 0:05:08]} Qe7 {[%emt 0:01:21]} 24. Re1 {[%emt 0:01:26]} g6 {[%emt 0:01:38]} 25. Rcd1 {[%emt 0:01:46]} Bd7 {[%emt 0:03:04]} 26. Ng5 {[%emt 0:02:09]} f5 {[%emt 0:02:09]} 27. a3 {[%emt 0:03:35]} h6 {[%emt 0:01:40]} 28. Nf3 {[%emt 0:03:20]} Kh7 {[%emt 0:02:13]} 29. Ne5 {[%emt 0:04:38]} Be8 {[%emt 0:00:42]} 30. Nf3 {[%emt 0:05:33]} Rf6 {[%emt 0:04:08]} 31. h4 {[%emt 0:01:43]} Qg7 {[%emt 0:02:19]} 32. Kf2 {[%emt 0:03:13]} Qc7 {[%emt 0:00:31]} 33. Ba2 {[%emt 0:07:07]} Qe7 {[%emt 0:00:43]} 34. Qe5 {[%emt 0:01:15]} Kg8 {[%emt 0:01:30]} 35. Rd2 {[%emt 0:02:26]} Qg7 {[%emt 0:00:48]} 36. Rde2 {[%emt 0:01:40]} Qe7 {[%emt 0:01:30]} 37. Bxd5 {[%emt 0:02:27]} Rxd5 {[%emt 0:00:34]} 38. Qxf6 {[%emt 0:02:34]} Qxf6 {[%emt 0:00:28]} 39. Rxe6 {[%emt 0:00:06]} Qxe6 {[%emt 0:03:33]} 40. Rxe6 {[%emt 0:01:37]} Kf7 {[%emt 0:00:07]} 41. Re1 {[%emt 0:31:53]} a5 {[%emt 0:31:06]} 42. Ke3 {[%emt 0:00:30]} Kf6 {[%emt 0:00:25]} 43. Kd3 {[%emt 0:01:38]} Rd8 {[%emt 0:00:31]} 44. Ne5 {[%emt 0:01:05]} h5 {[%emt 0:02:34]} 45. Kc3 {[%emt 0:02:17]} Rb8 {[%emt 0:01:10]} 46. b3 {[%emt 0:05:16]} a4 {[%emt 0:10:14]} 47. b4 {[%emt 0:00:00]} Rd8 {[%emt 0:00:00]} 48. Re2 {[%emt 0:00:00]} Kg7 {[%emt 0:00:00]} 49. Nf3 {[%emt 0:00:00]} Kf6 {[%emt 0:00:00]} 50. d5 {[%emt 0:00:00]} cxd5 {[%emt 0:00:00]} 51. Kd4 {[%emt 0:00:00]} Bd7 {[%emt 0:00:00]} 52. Ne5 {[%emt 0:00:00]} Bc8 {[%emt 0:00:00]} 53. c6 {[%emt 0:00:00]} Ke6 {[%emt 0:00:00]} 54. Kc5 {[%emt 0:00:00]} d4 {[%emt 0:00:00]} 55. Nf3+ {[%emt 0:00:00]} Kf6 {[%emt 0:00:00]} 56. Nxd4 {[%emt 0:00:00]} 1-0